bitfinex/quotes_ETHUSD_20251011
["timestamp","ask_amount","ask_price","bid_price","bid_amount"]
[1760225838426,8.878776,3757.2,3756.3,0.02662194]
[1760225838656,8.878776,3757.2,3756.3,1.23]
[1760225838857,0.001,3757.3,3757.0,2.66163228]
[1760225839149,1.92,3757.1,3757.0,2.66163228]
[1760225839355,0.001,3757.3,3757.0,2.66163228]
[1760225839715,0.001,3757.3,3757.1,2.66162446]
[1760225839921,0.001,3757.3,3756.9,2.66175543]
[1760225840139,0.001,3757.3,3757.0,2.92780932]
[1760225840422,0.001,3757.3,3757.0,0.26617554]
[1760225840769,0.1328,3757.0,3756.9,2.66176878]
[1760225841234,0.001,3757.3,3756.4,1.64744]
[1760225841235,4.777191,3756.9,3756.4,1.64744]
[1760225841570,0.001,3757.3,3756.4,1.64744]
[1760225841571,0.001,3757.3,3756.6,1.23]
[1760225841769,1.92,3757.1,3756.6,3.89198086]
[1760225841990,1.92,3756.7,3756.6,3.89198086]
[1760225842170,0.001,3757.3,3756.6,3.89198086]
[1760225842171,2.5546,3757.3,3756.6,3.89198086]
[1760225842483,0.6336,3756.8,3756.6,1.23]
[1760225842632,7.822863,3756.7,3756.6,2.46]
[1760225842854,5.822943,3756.7,3756.6,2.46]
[1760225843661,1.92,3756.7,3756.6,2.952]
[1760225843844,1.92,3756.7,3756.6,5.61398157]
[1760225844245,1.92,3756.7,3756.6,6.84398157]
[1760225844751,1.92,3756.7,3756.6,4.182]
[1760225844950,9.331485,3756.7,3756.6,4.182]
[1760225845257,9.331485,3756.7,3756.6,3.69]
[1760225845776,12.62899571,3756.7,3756.6,4.92]
[1760225845935,14.77019808,3756.7,3756.6,4.92]
[1760225846134,17.43210879,3756.7,3756.6,4.92]
[1760225846958,26.18455479,3756.7,3756.6,6.15]
[1760225847530,23.76098479,3756.7,3756.6,6.15]
[1760225848167,25.90324979,3756.7,3756.6,6.15]
[1760225848402,26.16350604,3756.7,3756.6,7.38]
[1760225848577,25.90324979,3756.7,3756.6,7.38]
[1760225849302,36.19821739,3756.7,3756.6,7.38]
[1760225850000,36.19821739,3756.7,3756.6,8.61]
[1760225851382,36.19821739,3756.7,3756.6,9.84]
[1760225852266,36.45847364,3756.7,3756.6,9.84]
[1760225852865,36.45847364,3756.7,3756.6,11.07]
[1760225853279,36.19821739,3756.7,3756.6,11.07]
[1760225853483,35.91360531,3756.7,3756.6,11.07]
[1760225854371,35.91360531,3756.7,3756.6,12.3]
[1760225855098,36.45847364,3756.7,3756.6,12.3]
[1760225855801,36.45847364,3756.7,3756.6,13.53]
[1760225857199,6.45847364,3756.7,3756.6,13.53]
[1760225857406,36.45847364,3756.7,3756.6,14.76]
[1760225857777,37.26012289,3756.7,3756.6,14.76]
[1760225858173,36.99986664,3756.7,3756.6,14.76]
[1760225858811,36.99986664,3756.7,3756.6,15.99]
[1760225860398,36.99986664,3756.7,3756.6,17.22]
[1760225861203,35.91360531,3756.7,3756.6,17.22]
[1760225861722,35.91360531,3756.7,3756.6,18.45]
[1760225863084,35.91360531,3756.7,3756.6,19.68]
[1760225864456,35.28000531,3756.7,3756.6,20.91]
[1760225864615,20.36918131,3756.7,3756.6,20.91]
[1760225864817,4.318449,3756.7,3756.6,21.71259829]
[1760225865057,0.001,3757.0,3756.6,21.71259829]
[1760225865229,0.001,3757.0,3756.9,2.66176901]
[1760225865434,4.00736,3757.0,3756.9,2.66176901]
[1760225865613,0.1328,3756.9,3756.8,2.68845825]
[1760225865817,0.001,3757.4,3757.2,2.66155647]
[1760225866115,0.001,3757.4,3756.8,3.21569966]
[1760225866116,17.389159,3757.1,3757.0,2.66162831]
[1760225866323,19.643014,3757.2,3757.1,2.66162731]
[1760225866658,1.92,3757.0,3756.8,2.72498127]
[1760225866825,19.988088,3756.7,3756.6,20.91]
[1760225867155,26.933369,3756.7,3756.6,22.14]
[1760225867856,27.566969,3756.7,3756.6,22.14]
[1760225868061,19.763231,3756.7,3756.6,22.14]
[1760225868222,13.516349,3756.7,3756.6,22.14]
[1760225868568,13.516349,3756.7,3756.6,22.5700384]
[1760225868928,5.21751071,3756.7,3756.6,22.5700384]
[1760225869148,23.99114971,3756.7,3756.6,22.5700384]
[1760225869452,13.7197,3756.7,3756.6,22.5700384]
[1760225869960,1.92,3756.7,3756.6,23.8000384]
[1760225870259,4.05444,3756.7,3756.6,23.8000384]
[1760225871044,1.92,3756.7,3756.6,27.15868696]
[1760225871354,1.92,3756.7,3756.6,28.38868696]
[1760225871720,5.022752,3756.7,3756.6,25.72670539]
[1760225872064,31.922,3756.7,3756.6,25.0300384]
[1760225872355,19.018152,3756.7,3756.6,25.0300384]
[1760225872519,21.68006271,3756.7,3756.6,26.2600384]
[1760225872934,5.21851071,3756.7,3756.6,26.2600384]
[1760225873133,35.21851071,3756.7,3756.6,26.2600384]
[1760225873924,35.21851071,3756.7,3756.6,27.4900384]
[1760225874763,32.5566,3756.7,3756.6,27.4900384]
[1760225874953,35.21851071,3756.7,3756.6,27.4900384]
[1760225875471,35.21851071,3756.7,3756.6,28.7200384]
[1760225875761,15.259721,3756.7,3756.6,28.7200384]
[1760225876141,17.55476,3756.7,3756.6,28.7200384]
[1760225876531,20.21667071,3756.7,3756.6,28.7200384]
[1760225876770,20.21667071,3756.7,3756.6,29.9500384]
[1760225877268,30.85979371,3756.7,3756.6,29.9500384]
[1760225878032,5.21851071,3756.7,3756.6,29.9500384]
[1760225878376,31.42438371,3756.7,3756.6,31.1800384]
[1760225879085,1.921,3756.7,3756.6,31.1800384]
[1760225879255,9.887806,3756.7,3756.6,31.1800384]
[1760225879455,1.921,3756.7,3756.6,33.90501967]
[1760225879651,4.797671,3756.7,3756.6,35.13501967]
[1760225879855,4.797671,3756.7,3756.6,32.4100384]
[1760225880071,14.86683,3756.7,3756.6,32.4100384]
[1760225880272,13.661666,3756.7,3756.6,32.4100384]
[1760225880476,16.95917671,3756.7,3756.6,32.4100384]
[1760225881086,16.95917671,3756.7,3756.6,33.6400384]
[1760225881087,35.21851071,3756.7,3756.6,33.6400384]
[1760225881260,31.18663071,3756.7,3756.6,33.6400384]
[1760225881584,25.09475071,3756.7,3756.6,33.6400384]
[1760225882181,32.53244471,3756.7,3756.6,33.6400384]
[1760225882384,31.02018771,3756.7,3756.6,34.8700384]
[1760225882779,16.97422,3756.7,3756.6,34.8700384]
[1760225882954,1.921,3756.7,3756.6,34.8700384]
[1760225883154,16.505354,3756.7,3756.6,36.45760259]
[1760225883358,16.505354,3756.7,3756.6,34.8700384]
[1760225884090,16.505354,3756.7,3756.6,36.1000384]
[1760225884091,17.140954,3756.7,3756.6,36.1000384]
[1760225884384,25.79259271,3756.7,3756.6,36.1000384]
[1760225885189,35.21851071,3756.7,3756.6,36.1000384]
[1760225885360,35.21851071,3756.7,3756.6,37.3300384]
[1760225886726,35.50312279,3756.7,3756.6,38.5600384]
[1760225887528,35.76337904,3756.7,3756.6,38.5600384]
[1760225887732,35.76337904,3756.7,3754.0,2.66380367]
[1760225887733,21.962513,3754.3,3754.0,2.66380367]
[1760225887933,33.277454,3754.1,3754.0,2.66380367]
[1760225888238,12.678094,3753.4,3753.1,2.66446404]
[1760225888532,12.678094,3753.4,3753.3,2.66432206]
[1760225888533,33.277454,3753.4,3753.3,2.66432206]
[1760225889104,33.277454,3753.4,3753.3,3.11752206]
[1760225890498,31.357454,3754.2,3754.1,2.66375429]
[1760225890747,15.358253,3754.8,3754.5,2.6634705]
[1760225891037,15.358253,3754.8,3754.7,2.66332862]
[1760225891038,28.69419631,3754.8,3754.7,2.66332862]
[1760225891235,30.61419631,3754.8,3754.7,2.66332862]
[1760225891791,28.69419631,3754.8,3754.7,3.1431619]
[1760225892096,28.69419631,3755.6,3755.5,2.66276128]
[1760225892437,21.231241,3755.6,3755.5,2.66276128]
[1760225892616,7.46295531,3755.8,3755.7,2.66261948]
[1760225892617,28.69419631,3755.8,3755.7,2.66261948]
[1760225892823,30.61419631,3755.8,3755.7,2.66261948]
[1760225893016,32.72558931,3755.8,3755.7,2.66261948]
[1760225893195,28.69419631,3755.8,3755.7,2.66261948]
[1760225893418,30.61419631,3755.8,3755.7,2.66261948]
[1760225893622,30.61419631,3755.8,3755.7,4.52373373]
[1760225894269,24.76588931,3755.8,3755.7,4.97693373]
[1760225894427,28.69419631,3756.4,3756.3,2.66219418]
[1760225894760,28.69419631,3756.6,3756.5,2.66205244]
[1760225894959,28.69419631,3756.6,3756.5,3.14187296]
[1760225895262,30.61419631,3756.6,3756.5,3.14187296]
[1760225895934,30.61419631,3756.6,3756.5,3.11525244]
[1760225896140,30.61419631,3756.6,3756.5,3.86923486]
[1760225896338,30.61419631,3756.6,3756.5,5.09923486]
[1760225896736,28.69419631,3756.6,3756.5,5.09923486]
[1760225897455,30.61419631,3756.6,3756.5,5.09923486]
[1760225897655,30.61419631,3756.6,3756.5,6.32923486]
[1760225898564,28.69419631,3756.6,3756.5,6.32923486]
[1760225899135,30.61419631,3756.6,3756.5,6.35205244]
[1760225899335,30.61419631,3756.6,3756.5,6.80525244]
[1760225900434,30.61419631,3756.6,3756.5,8.03525244]
[1760225901992,30.61419631,3756.6,3756.5,9.26525244]
[1760225902340,0.001,3756.7,3756.5,9.26525244]
[1760225902583,0.001,3756.7,3756.6,4.24457147]
[1760225902949,0.001,3756.7,3756.6,4.24427147]
[1760225903470,0.001,3756.7,3756.6,5.47427147]
[1760225903665,0.001,3756.7,3756.6,5.44765166]
[1760225904768,0.001,3756.7,3756.6,6.08125166]
[1760225904952,0.001,3756.7,3756.6,7.44405166]
[1760225906546,0.001,3756.7,3756.6,8.67405166]
[1760225907756,0.001,3756.7,3756.6,8.04045166]
[1760225908054,0.001,3756.7,3756.6,9.27045166]
[1760225908664,0.001,3756.7,3756.6,6.02277009]
[1760225908862,4.30586,3756.7,3756.6,4.92]
[1760225909095,4.40716,3756.7,3756.6,4.92]
[1760225909267,4.62730541,3756.7,3756.6,6.15]
[1760225909591,4.72860541,3756.7,3756.6,6.15]
[1760225909800,10.25742741,3756.7,3756.6,6.15]
[1760225910265,9.935982,3756.7,3756.6,6.15]
[1760225910465,5.254657,3756.7,3756.6,6.15]
[1760225910667,5.254657,3756.7,3756.6,7.38]
[1760225910992,9.935982,3756.7,3756.6,7.38]
[1760225911377,9.229756,3756.7,3756.6,7.38]
[1760225911681,8.181866,3756.7,3756.6,7.38]
[1760225911992,9.935982,3756.7,3756.6,7.38]
[1760225912226,12.59789271,3756.7,3756.6,8.61]
[1760225913257,9.935982,3756.7,3756.6,8.61]
[1760225913998,9.935982,3756.7,3756.6,9.84]
[1760225914598,12.59789271,3756.7,3756.6,9.84]
[1760225915189,13.55293812,3756.7,3756.6,9.84]
[1760225915391,13.55293812,3756.7,3756.6,11.07]
[1760225916037,13.8532777,3756.7,3756.6,11.07]
[1760225916236,14.65487126,3756.7,3756.6,11.07]
[1760225916407,13.75104856,3756.6,3756.5,6.152]
[1760225916736,14.07739527,3756.6,3756.5,6.152]
[1760225916944,1.1144,3754.8,3754.7,1.23]
[1760225917115,3.619361,3754.8,3754.7,0.1156]
[1760225917444,5.437861,3754.8,3754.7,0.1156]
[1760225917808,1.92,3754.8,3754.7,2.77892862]
[1760225918010,1.92,3754.8,3754.7,5.00873177]
[1760225918933,1.92,3754.8,3754.7,4.55583177]
[1760225919233,5.437861,3754.8,3754.7,1.3456]
[1760225919531,5.437861,3754.8,3754.7,2.5756]
[1760225920496,1.92,3754.8,3754.7,5.23892862]
[1760225920911,1.92,3754.8,3754.7,6.92182862]
[1760225921337,1.92,3754.8,3754.7,6.46892862]
[1760225921536,4.591056,3754.8,3754.7,6.46892862]
[1760225921738,1.92,3754.8,3754.7,3.8056]
[1760225921906,5.437861,3754.8,3754.7,3.8056]
[1760225922329,5.437861,3754.8,3754.7,7.69892862]
[1760225922532,5.437861,3754.8,3754.7,5.0356]
[1760225922716,5.539961,3754.8,3754.7,5.0356]
[1760225923237,8.20321869,3754.8,3754.7,5.0356]
[1760225923415,8.5246641,3754.8,3754.7,5.0356]
[1760225923637,8.5246641,3754.8,3754.7,6.2656]
[1760225923832,5.86140641,3754.8,3754.7,6.2656]
[1760225924250,8.5246641,3754.8,3754.7,6.2656]
[1760225924555,5.86140641,3754.8,3754.7,6.2656]
[1760225924962,5.86140641,3754.8,3754.7,7.4956]
[1760225925127,9.1582641,3754.8,3754.7,7.4956]
[1760225926225,9.1582641,3754.8,3754.7,8.7256]
[1760225927285,5.6404031,3754.8,3754.7,8.7256]
[1760225927426,9.1582641,3754.8,3754.7,8.7256]
[1760225927622,6.173561,3754.8,3754.7,9.9556]
[1760225928345,8.83681869,3754.8,3754.7,9.9556]
[1760225929658,8.83681869,3754.8,3754.7,11.1856]
[1760225930362,9.1582641,3754.8,3754.7,11.1856]
[1760225931106,9.1582641,3754.8,3754.7,12.4156]
[1760225931674,6.173561,3754.8,3754.7,12.4156]
[1760225931876,6.071461,3754.8,3754.7,12.4156]
[1760225932085,8.83681869,3754.8,3754.7,12.4156]
[1760225932450,8.83681869,3754.8,3754.7,13.6456]
[1760225932890,9.1582641,3754.8,3754.7,13.6456]
[1760225933974,9.1582641,3754.8,3754.7,14.8756]
[1760225934955,8.83681869,3754.8,3754.7,14.8756]
[1760225935580,8.83681869,3754.8,3754.7,16.1056]
[1760225936790,6.173561,3754.8,3754.7,17.3356]
[1760225937491,8.83681869,3754.8,3754.7,17.3356]
[1760225937875,5.539961,3754.8,3754.7,17.3356]
[1760225938186,5.437861,3754.8,3754.7,18.5656]
[1760225938607,8.83681869,3754.8,3754.7,18.5656]
[1760225938810,9.18160186,3754.8,3754.7,18.5656]
[1760225939008,6.51834417,3754.8,3754.7,18.5656]
[1760225939304,9.18160186,3754.8,3754.7,18.5656]
[1760225939675,9.18160186,3754.8,3754.7,19.7956]
[1760225940391,8.83681869,3754.8,3754.7,19.7956]
[1760225940596,6.173561,3754.8,3754.7,19.7956]
[1760225940918,5.437861,3754.8,3754.7,23.19421294]
[1760225941083,3.517861,3755.2,3754.8,2.66325769]
[1760225941288,2.13215,3755.1,3755.0,2.6630529]
[1760225941602,2.13215,3755.1,3754.9,0.02663186]
[1760225941603,1.92,3755.4,3754.8,2.66319306]
[1760225941810,0.001,3755.2,3754.7,21.76088432]
[1760225942102,0.001,3755.2,3754.7,21.0256]
[1760225942339,1.92,3755.0,3754.8,0.02663257]
[1760225942606,0.001,3755.2,3755.0,2.66304749]
[1760225942775,0.001,3755.2,3755.1,0.02663044]
[1760225942970,4.999669,3755.2,3755.1,2.68967536]
[1760225943202,1.92,3755.1,3754.8,2.66324692]
[1760225943403,1.92,3755.0,3754.8,2.66324692]
[1760225943874,5.437861,3754.9,3754.8,3.89324692]
[1760225944069,5.437861,3754.9,3754.8,1.23]
[1760225944271,5.539961,3754.9,3754.8,1.23]
[1760225945113,6.173561,3754.9,3754.8,1.23]
[1760225945294,6.51834417,3754.9,3754.8,2.46]
[1760225946497,6.51834417,3754.9,3754.8,5.12325769]
[1760225946498,4.739372,3754.9,3754.8,5.12325769]
[1760225946704,4.739372,3754.9,3754.8,3.69]
[1760225946907,5.539961,3754.9,3754.8,3.69]
[1760225947830,9.18153093,3754.9,3754.8,3.69]
[1760225948038,6.51834417,3754.9,3754.8,4.92]
[1760225948596,9.18153093,3754.9,3754.8,4.92]
[1760225949248,0.34478317,3754.9,3754.8,9.98022476]
[1760225949392,0.001,3755.2,3755.1,2.66304492]
[1760225949843,0.001,3755.2,3755.1,3.14257536]
[1760225950026,0.001,3755.2,3755.1,3.11594492]
[1760225950229,0.001,3755.2,3755.1,4.5485548]
[1760225951010,0.001,3755.2,3755.1,5.80518524]
[1760225951211,0.001,3755.2,3755.1,5.7785548]
[1760225952410,0.001,3755.2,3755.1,7.0085548]
[1760225953210,1e-08,3755.3,3755.2,2.662974]
[1760225953536,1e-08,3755.3,3755.2,4.3892553]
[1760225953755,1e-08,3755.3,3755.2,6.35902556]
[1760225955259,1e-08,3755.3,3755.2,7.58902556]
[1760225956353,1e-08,3755.3,3755.2,6.82262556]
[1760225956650,1e-08,3755.3,3755.2,8.05262556]
[1760225957765,1e-08,3755.3,3755.2,8.68622556]
[1760225957915,1e-08,3755.3,3755.2,9.91622556]
[1760225958854,0.00100001,3755.3,3755.2,9.91622556]
[1760225959253,0.001,3757.3,3755.6,3.29629038]
[1760225959254,1e-08,3755.7,3755.6,3.29629038]
[1760225959459,1e-08,3755.7,3755.6,3.97778344]
[1760225961375,1e-08,3755.7,3755.6,5.20778344]
[1760225962989,1e-08,3755.7,3755.6,6.43778344]
[1760225964384,1e-08,3755.7,3755.6,7.66778344]
[1760225966079,1e-08,3755.7,3755.6,8.89778344]
[1760225966281,1e-08,3755.7,3755.6,9.03058344]
[1760225967487,1e-08,3755.7,3755.6,10.26058344]
[1760225968807,1e-08,3755.7,3755.6,11.49058344]
[1760225970162,1e-08,3755.7,3755.6,12.72058344]
[1760225970607,0.001,3757.1,3756.6,2.66198157]
[1760225970907,0.1328,3757.0,3756.6,2.66198157]
[1760225971079,0.1328,3757.0,3756.6,3.11880138]
[1760225971262,0.1328,3757.0,3756.6,3.71997873]
[1760225971462,0.1328,3757.0,3756.6,4.94997873]
[1760225971662,0.1328,3757.0,3756.6,4.92335892]
[1760225971904,0.001,3757.1,3756.6,5.05615892]
[1760225972506,1e-08,3757.3,3757.2,2.66155647]
[1760225972801,1e-08,3757.3,3757.2,4.18432768]
[1760225973004,0.001,3757.8,3757.7,2.66120233]
[1760225973298,0.001,3757.8,3757.7,2.68781435]
[1760225973498,0.001,3757.8,3757.7,2.66120233]
[1760225973659,0.001,3757.8,3757.7,3.09140233]
[1760225974405,0.001,3757.8,3757.7,4.32140233]
[1760225975801,0.001,3757.8,3757.7,5.12120233]
[1760225976813,12.541612,3757.8,3757.7,5.12120233]
[1760225977284,12.541612,3757.8,3757.7,6.35120233]
[1760225978713,12.541612,3757.8,3757.7,7.58120233]
[1760225979114,1.921,3757.8,3757.7,7.58120233]
[1760225979417,1.921,3757.8,3757.7,9.0356521]
[1760225980073,1.921,3757.8,3757.7,10.2656521]
[1760225980274,1.921,3757.8,3757.7,9.24140233]
[1760225980475,1.921,3757.8,3757.7,8.81120233]
[1760225980903,1.921,3757.8,3757.7,9.24140233]
[1760225981590,1.921,3757.8,3757.7,10.47140233]
[1760225982872,1.921,3757.8,3757.7,11.70140233]
[1760225984329,1.921,3757.8,3757.7,12.93140233]
[1760225984938,1.921,3757.8,3757.7,13.21214321]
[1760225985240,1.921,3757.8,3757.7,13.34494321]
[1760225985450,1.921,3757.8,3757.7,12.50120233]
[1760225985605,1.921,3757.8,3757.7,14.17060233]
[1760225986950,1.921,3757.8,3757.7,13.73120233]
[1760225987150,1.921,3757.8,3757.7,15.40060233]
[1760225988644,1.921,3757.8,3757.7,16.63060233]
[1760225990012,1.921,3757.8,3757.7,17.86060233]
[1760225991375,1.921,3757.8,3757.7,19.09060233]
[1760225992875,1.921,3757.8,3757.7,20.32060233]
[1760225993072,1.921,3757.8,3757.7,22.6187921]
[1760225994048,1.921,3757.8,3757.7,23.8487921]
[1760225994384,0.001,3757.8,3757.7,23.8487921]
[1760225994551,0.001,3757.8,3757.7,25.7687921]
[1760225995469,0.001,3757.8,3757.7,25.2115921]
[1760225997473,0.001,3757.8,3757.7,26.0021921]
[1760225997674,0.001,3757.8,3757.7,26.4410921]
[1760225999124,0.001,3757.8,3757.7,27.6710921]
[1760226000413,0.001,3757.8,3757.7,28.9010921]
[1760226002101,0.001,3757.8,3757.7,30.1310921]
[1760226003619,0.001,3757.8,3757.7,31.3610921]
[1760226004926,0.001,3757.8,3757.7,32.5910921]
[1760226005092,0.001,3757.8,3757.7,32.4582921]
[1760226006296,0.001,3757.8,3757.7,33.6882921]
[1760226006889,0.001,3757.8,3757.7,33.8210921]
[1760226007635,0.001,3757.8,3757.7,35.0510921]
[1760226009131,0.001,3757.8,3757.7,36.2810921]
[1760226009796,0.001,3757.8,3757.7,37.5910921]
[1760226010398,0.001,3757.8,3757.7,38.8210921]
[1760226011743,0.001,3757.8,3757.7,35.95120233]
[1760226011948,0.001,3757.8,3757.7,37.18120233]
[1760226012241,4.350007,3757.8,3757.7,37.18120233]
[1760226012409,4.350007,3757.8,3757.7,33.21]
[1760226012595,4.451207,3757.8,3757.7,33.21]
[1760226013025,9.658759,3757.8,3757.7,33.21]
[1760226013333,6.239884,3757.8,3757.7,34.44]
[1760226013860,6.138684,3757.8,3757.7,34.44]
[1760226014048,11.917492,3757.8,3757.7,34.44]
[1760226014859,11.917492,3757.8,3757.7,38.33120233]
[1760226015160,11.791857,3757.8,3757.7,38.33120233]
[1760226015450,10.227672,3757.8,3757.7,38.33120233]
[1760226015640,10.227672,3757.8,3757.7,35.67]
[1760226015841,10.227672,3757.8,3757.7,38.33120233]
[1760226016156,1.921,3757.8,3757.7,38.33120233]
[1760226016358,1.921,3757.8,3757.7,39.56120233]
[1760226017732,11.749458,3757.8,3757.7,40.79120233]
[1760226018514,1.921,3757.8,3757.7,40.79120233]
[1760226018920,5.407091,3757.8,3757.7,40.79120233]
[1760226019157,5.407091,3757.8,3757.7,42.02120233]
[1760226019457,5.506091,3757.8,3757.7,42.02120233]
[1760226019617,10.27614,3757.8,3757.7,42.02120233]
[1760226019813,1.921,3757.8,3757.7,42.02120233]
[1760226020252,7.727222,3757.8,3757.7,42.02120233]
[1760226020434,7.727222,3757.8,3757.7,40.59]
[1760226020628,25.923144,3757.8,3757.7,40.59]
[1760226020829,11.363854,3757.8,3757.7,43.25120233]
[1760226021432,1.921,3757.8,3757.7,43.25120233]
[1760226021756,1.921,3757.8,3757.7,44.48120233]
[1760226021964,1.921,3757.8,3757.7,44.92010233]
[1760226022636,1.921,3757.8,3757.7,44.48120233]
[1760226023161,1.921,3757.8,3757.7,45.71120233]
[1760226023162,9.721058,3757.8,3757.7,45.71120233]
[1760226023759,10.030458,3757.8,3757.7,45.71120233]
[1760226024060,2.2304,3757.8,3757.7,45.71120233]
[1760226024257,15.392895,3757.8,3757.7,45.71120233]
[1760226024564,15.392895,3757.8,3757.7,46.94120233]
[1760226024718,15.392895,3757.8,3757.7,44.28]
[1760226024719,16.35053034,3757.8,3757.7,44.28]
[1760226025086,27.49136385,3757.8,3757.7,44.28]
[1760226025917,27.49136385,3757.8,3757.7,45.51]
[1760226026123,30.80559685,3757.8,3757.7,45.51]
[1760226027142,36.14121603,3757.8,3757.7,45.51]
[1760226027362,36.14121603,3757.8,3757.7,46.74]
[1760226027727,35.84916685,3757.8,3757.7,46.74]
[1760226028628,35.52513151,3757.8,3757.7,47.97]
[1760226028871,17.08452651,3757.8,3757.7,47.97]
[1760226029187,17.22515251,3757.8,3757.7,47.97]
[1760226029797,8.539418,3757.8,3757.7,47.97]
[1760226030102,9.173018,3757.8,3757.7,49.2]
[1760226030294,12.179476,3757.8,3757.7,49.2]
[1760226030591,9.974254,3757.8,3757.7,49.2]
[1760226030792,12.63538551,3757.8,3757.7,49.2]
[1760226031093,13.26898551,3757.8,3757.7,49.2]
[1760226031390,15.06876951,3757.8,3757.7,50.43]
[1760226032301,26.88475751,3757.8,3757.7,50.43]
[1760226032798,27.20879285,3757.8,3757.7,50.43]
[1760226033002,27.20879285,3757.8,3757.7,51.66]
[1760226033293,22.63566585,3757.8,3757.7,51.66]
[1760226033590,12.94530734,3757.8,3757.7,51.66]
[1760226033755,10.29973034,3757.8,3757.7,51.66]
[1760226033958,5.910627,3757.8,3757.7,51.66]
[1760226034395,10.149038,3757.8,3757.7,52.89]
[1760226034893,9.522038,3757.8,3757.7,52.89]
[1760226035262,23.890906,3757.8,3757.7,52.89]
[1760226035677,23.890906,3757.8,3757.7,54.12]
[1760226036066,13.877762,3757.8,3757.7,54.12]
[1760226036271,19.458836,3757.8,3757.7,54.12]
[1760226036931,18.458836,3757.8,3757.7,54.12]
[1760226037098,15.334336,3757.8,3757.7,55.35]
[1760226037294,13.888,3757.8,3757.7,55.35]
[1760226038406,14.188888,3757.8,3757.7,56.58]
[1760226038601,12.76587,3757.8,3757.7,56.58]
[1760226039297,13.07462,3757.8,3757.7,56.58]
[1760226039496,15.73575151,3757.8,3757.7,56.58]
[1760226039696,16.35183603,3757.8,3757.7,57.81]
[1760226040393,23.34842752,3757.8,3757.7,57.81]
[1760226041012,8.923573,3757.8,3757.7,57.81]
[1760226041226,8.923573,3757.8,3757.7,59.04]
[1760226041424,11.080359,3757.8,3757.7,59.04]
[1760226041731,13.74149051,3757.8,3757.7,59.04]
[1760226042424,34.48289003,3757.8,3757.7,59.04]
[1760226042723,34.48289003,3757.8,3757.7,60.27]
[1760226042724,33.39871303,3757.8,3757.7,60.27]
[1760226043114,32.93518003,3757.8,3757.7,60.27]
[1760226043496,34.11626703,3757.8,3757.7,60.27]
[1760226044413,6.14121603,3757.8,3757.7,60.27]
[1760226044613,36.14121603,3757.8,3757.7,61.5]
[1760226044936,33.52089751,3757.8,3757.7,61.5]
[1760226045139,31.66768851,3757.8,3757.7,61.5]
[1760226045445,35.52513151,3757.8,3757.7,61.5]
[1760226046709,35.52513151,3757.8,3757.7,62.73]
[1760226047110,35.21573151,3757.8,3757.7,62.73]
[1760226047306,4.526908,3757.8,3757.7,62.73]
[1760226047529,6.799618,3757.8,3757.7,62.73]
[1760226047744,7.433218,3757.8,3757.7,62.73]
[1760226048246,7.433218,3757.8,3757.7,63.96]
[1760226048617,8.631785,3757.8,3757.7,63.96]
[1760226049542,32.6547,3757.8,3757.7,65.19]
[1760226050434,35.93191603,3757.8,3757.7,65.19]
[1760226051010,35.93191603,3757.8,3757.7,66.42]
[1760226052458,35.93191603,3757.8,3757.7,67.65]
[1760226053744,35.93191603,3757.8,3757.7,68.88]
[1760226054870,36.62782536,3757.8,3757.7,68.88]
[1760226055041,36.62782536,3757.8,3757.7,70.11]
[1760226056570,36.62782536,3757.8,3757.7,71.34]
[1760226056929,35.37814084,3757.8,3757.7,71.34]
[1760226057135,36.01174084,3757.8,3757.7,71.34]
[1760226057971,36.32491324,3757.8,3757.7,72.57]
[1760226058138,36.64894858,3757.8,3757.7,72.57]
[1760226059313,36.64894858,3757.8,3757.7,73.8]
[1760226059962,36.64894858,3757.8,3757.7,18.45]
[1760226059963,17.05952758,3757.8,3757.7,18.45]
[1760226060170,17.05952758,3757.8,3757.7,1e-08]
[1760226060474,17.28403226,3757.8,3757.7,1.23000001]
[1760226060675,16.74635518,3757.8,3757.7,1.23000001]
[1760226060914,36.33577618,3757.8,3757.7,1.23000001]
[1760226061402,36.64894858,3757.8,3757.7,1.23000001]
[1760226062101,36.64894858,3757.8,3757.7,2.46000001]
[1760226062713,37.45037726,3757.8,3757.7,2.46000001]
[1760226063305,37.45037726,3757.8,3757.7,3.69000001]
[1760226063906,7.45037726,3757.8,3757.7,3.69000001]
[1760226064093,37.45037726,3757.8,3757.7,3.69000001]
[1760226064598,18.82891258,3757.8,3757.7,3.69000001]
[1760226064805,19.46251258,3757.8,3757.7,4.92000001]
[1760226065010,28.17375258,3757.8,3757.7,4.92000001]
[1760226065370,26.57375258,3757.8,3757.7,4.92000001]
[1760226065771,26.27125258,3757.8,3757.7,4.92000001]
[1760226065969,26.57375258,3757.8,3757.7,4.92000001]
[1760226066168,26.33348858,3757.8,3757.7,6.15000001]
[1760226066985,28.63412958,3757.8,3757.7,6.15000001]
[1760226067288,16.57128658,3757.8,3757.7,6.15000001]
[1760226067486,16.57128658,3757.8,3757.7,7.38000001]
[1760226068103,36.64894858,3757.8,3757.7,7.38000001]
[1760226068315,25.15862858,3757.8,3757.7,7.38000001]
[1760226068608,5.64935,3757.8,3757.7,7.38000001]
[1760226068807,0.1011,3757.8,3757.7,8.61000001]
[1760226069109,4.489992,3757.8,3757.7,8.61000001]
[1760226069708,5.123592,3757.8,3757.7,8.61000001]
[1760226070097,9.390478,3757.8,3757.7,9.84000001]
[1760226070303,0.001,3757.8,3757.7,12.50120234]
[1760226070488,2.993867,3757.8,3757.7,12.50120234]
[1760226071019,0.001,3757.8,3757.7,14.01765555]
[1760226071378,0.001,3757.8,3757.7,15.24765555]
[1760226072484,19.271704,3757.8,3757.7,11.07000001]
[1760226072727,7.535372,3757.8,3757.7,12.30000001]
[1760226073012,5.59844,3757.8,3757.7,12.30000001]